{"text_format":"2","workbook":"xlsx","n_sheets":1,"sheets":["Sheet3"],"not_rendered":{"charts":0,"images":0,"macros":0,"external_links":0,"defined_names":1,"comments":0,"pivot_tables":0},"unopened":[],"bounds":{"document_bytes":16777216,"sheet_cells":100000,"run_cost":"one","rows_first":2000,"rows_last":500,"rows_between":2000,"halvings":0,"cell_chars":16384,"cell_head_chars":4096},"cells_cut":0,"cells_raw":0,"read":"whole","date_system":"1900"}

{"sheet":"Sheet3","index":0,"n_rows":20,"n_cols":6,"rows_kept":20,"cut":false,"hidden":false,"merged":[]}
["Supplier","No.Code","Details"]
["Supplier-1","7303","Intruder Alarm System",{"$f":"LookUpConcat(A2,$A$2:$A$20,$C$2:$C$20,\", \")","v":{"$error":"#NAME?"}},{"$f":"LookUpConcat(A2,$A$2:$A$20,$B$2:$B$20,\", \")","v":{"$error":"#NAME?"}},{"$f":"EXACT(A2,A3)","v":false}]
["Supplier-2","5003","flush through to stack - Flat 1",{"$f":"LookUpConcat(A3,$A$2:$A$20,$C$2:$C$20,\", \")","v":{"$error":"#NAME?"}},{"$f":"LookUpConcat(A3,$A$2:$A$20,$B$2:$B$20,\", \")","v":{"$error":"#NAME?"}},{"$f":"EXACT(A3,A4)","v":true}]
["Supplier-2","5003","flush through to stack - Flat 2",{"$f":"LookUpConcat(A4,$A$2:$A$20,$C$2:$C$20,\", \")","v":{"$error":"#NAME?"}},{"$f":"LookUpConcat(A4,$A$2:$A$20,$B$2:$B$20,\", \")","v":{"$error":"#NAME?"}},true]
["Supplier-2","5003","flush through to stack - Flat 3",{"$f":"LookUpConcat(A5,$A$2:$A$20,$C$2:$C$20,\", \")","v":{"$error":"#NAME?"}},{"$error":"#NAME?"},true]
["Supplier-2","5003","flush through to stack - Flat 45",{"$f":"LookUpConcat(A6,$A$2:$A$20,$C$2:$C$20,\", \")","v":{"$error":"#NAME?"}},{"$error":"#NAME?"},false]
["Supplier-6","5010","Garden maintenance for October 2014",{"$error":"#NAME?"},{"$error":"#NAME?"},false]
["Supplier-7","7100","Office rent 02/11/2014-01/12/2014",{"$error":"#NAME?"},{"$error":"#NAME?"},true]
["Supplier-7","7100","office rent 02/10/2014-01/11/2014",{"$error":"#NAME?"},{"$error":"#NAME?"},false]
["Supplier-9","5040","callout not heating/hot water - Flat 87",{"$error":"#NAME?"},{"$error":"#NAME?"},false]
["Supplier-10","5040","gas test and boiler service - Flat 18",{"$error":"#NAME?"},{"$error":"#NAME?"},false]
["Supplier-11","5040","gas test and boiler service - Flat 9",{"$error":"#NAME?"},{"$error":"#NAME?"},true]
["Supplier-11","5003","fix leak in sink and toilet - Flat 42",{"$error":"#NAME?"},{"$error":"#NAME?"},true]
["Supplier-11","5003","change bathroom light - Flat 88",{"$error":"#NAME?"},{"$error":"#NAME?"},true]
["Supplier-11","5082","provide cleaner for 1-15th Nov 14",{"$error":"#NAME?"},{"$error":"#NAME?"},false]
["Supplier-15","5003","materials for - Flat 4 leak repair",{"$error":"#NAME?"},{"$error":"#NAME?"},false]
["Supplier-16","9019","supply & fit worktop, sink and taps fix leak - Flat 38",{"$error":"#NAME?"},{"$error":"#NAME?"},true]
["Supplier-16","7510","stationary",{"$error":"#NAME?"},{"$error":"#NAME?"},true]
["Supplier-16","5014","lights for communal areas",{"$error":"#NAME?"},{"$error":"#NAME?"},true]
["Supplier-16","5040","stop leak from Flat 4",{"$error":"#NAME?"},{"$error":"#NAME?"},false]